[Event "GER-ch Youth U16W 2020"]
[Site "Willingen"]
[Date "2020.10.20"]
[Round "1.3"]
[White "Schneider, Katharina"]
[Black "Schnabel, Luise"]
[Result "0-1"]
[ECO "B90"]
[WhiteElo "1779"]
[BlackElo "1867"]
[Annotator "NA RC"]
[PlyCount "80"]
[EventDate "2020.10.20"]
[EventType "swiss"]
[EventRounds "7"]
[EventCountry "GER"]
[SourceTitle "playchess.com"]
[Source "ChessBase"]
[SourceQuality "1"]
[TimeControl "40/5400+30:1800+30"]

{[%evp 8,80,30,32767,32767,29,32767,32767,7,9,32767,-22,32767,2,0,0,27,-8,12,-113,32767,-110,-121,32767,-121,-129,32767,-140,-124,-139,-123,-121,-136,-141,32767,-89,-47,32767,32767,32767,32767,32767,-190,-173,-170,-190,-89,32767,-229,-497,-497,-515,32767,32767,32767,-651,-643,-606,-694,-862,-897,32767,32767,32767,-29995,-29997,-29992,-29992,-29992,-29992,-29992,-29993,-29994,-29994,-29995]} 1. e4 {[%emt 0:00:00]} c5 {[%emt 0:00:00]} 2. Nf3 {[%emt 0:00:00]} d6 {[%emt 0:00:08]} 3. d4 {[%emt 0:00:13]} cxd4 {[%emt 0:00:14]} 4. Nxd4 {[%emt 0:00:23]} Nf6 {[%emt 0:00:25]} 5. Nc3 {[%emt 0:01:11]} a6 {[%emt 0:00:31]} 6. f3 {[%emt 0:00:36]} e6 {[%emt 0:01:20]} 7. Be3 {[%emt 0:01:14]} b5 {[%emt 0:01:40]} 8. Qd2 {[%emt 0:03:53]} Nbd7 {[%emt 0:02:42]} 9. g4 {[%emt 0:06:19]} Nb6 {[%emt 0:04:05] 9...b4 is a critical line.} 10. h4 {[%emt 0:06:26] B80: Sicilian Scheveningen: 6 g3 and 6 Be3, including English Attack.} Bb7 {[%emt 0:08:01]} 11. h5 {[%emt 0:10:23]} Nfd7 {[%emt 0:13:36]} 12. g5 {[%emt 0:07:41]} Ne5 {[%emt 0:09:50] [#]} 13. Qg2 $146 {[%emt 0:18:59]} (13. O-O-O $11) ({Predecessor:} 13. b3 Rc8 14. f4 Ng4 15. Be2 Nxe3 16. Qxe3 Qc7 17. Kd2 d5 18. e5 Bb4 19. Rh3 {½-½ (49) Grunert,W (1653)-Liu,S (1730) Wuerzburg 2018}) 13... Nbc4 {[%emt 0:19:35]} 14. Bxc4 {[%emt 0:06:47]} Nxc4 {[%emt 0:02:10]} 15. Bc1 {[%emt 0:01:16]} d5 {[%emt 0:14:27]} 16. exd5 {[%emt 0:07:48]} Bxd5 {[%emt 0:01:45]} 17. Nxd5 {[%emt 0:03:49]} Qxd5 {[%emt 0:00:37]} 18. c3 {[%emt 0:01:13]} Bc5 {[%emt 0:04:11]} 19. Rh4 {[%emt 0:02:15]} Rd8 {[%emt 0:04:44]} 20. b3 {[%emt 0:08:50]} Ne5 {[%emt 0:01:16]} 21. Re4 {[%emt 0:02:34]} Bxd4 {[%emt 0:03:21]} (21... O-O $17 22. h6 g6) 22. cxd4 {[%emt 0:01:19]} Nd3+ {[%emt 0:01:20]} 23. Ke2 {[%emt 0:00:58]} Nb4 {[%emt 0:00:59]} 24. Bd2 {[%emt 0:01:32]} Nc2 $1 {[%emt 0:01:11] Double Attack} 25. Rd1 {[%emt 0:01:59]} Nxd4+ {[%emt 0:00:55]} 26. Kf2 {[%emt 0:00:48]} Nc6 {[%emt 0:01:35]} (26... Nf5 $19 {and Black stays clearly on top.} 27. h6 O-O 28. hxg7 Rfe8) 27. Qg4 {[%emt 0:02:43]} Ne5 {[%emt 0:01:04]} 28. Qg3 $2 {[%emt 0:01:09] [#]} (28. Qg2 {was forced.}) 28... Nd3+ $1 {[%emt 0:00:24]} 29. Kg2 {[%emt 0:00:21]} Nb2 {[%emt 0:00:32]} 30. Re5 {[%emt 0:00:14]} Qd7 {[%emt 0:00:50]} 31. Rde1 {[%emt 0:00:51]} Qxd2+ {[%emt 0:00:14]} 32. R1e2 {[%emt 0:00:58]} Qc1 {[%emt 0:00:56]} 33. g6 {[%emt 0:01:05]} hxg6 {[%emt 0:00:44]} 34. hxg6 {[%emt 0:00:39]} Qh1+ {[%emt 0:00:36]} 35. Kf2 {[%emt 0:00:04]} Rh2+ {[%emt 0:00:52]} 36. Ke3 {[%emt 0:00:21]} Nd1+ {[%emt 0:00:32]} 37. Kf4 {[%emt 0:00:31]} Rh4+ {[%emt 0:00:18]} 38. Qg4 {[%emt 0:00:44]} Rxg4+ {[%emt 0:00:17]} 39. fxg4 {[%emt 0:00:15]} Qf1+ {[%emt 0:00:39]} 40. Kg3 {[%emt 0:00:11]} Rd3+ {[%emt 0:00:16]} 0-1

[Event "GER-ch Youth U16W 2020"]
[Site "Willingen"]
[Date "2020.10.20"]
[Round "1.5"]
[White "Kalina, Lena"]
[Black "Rudolph, Eva"]
[Result "0-1"]
[ECO "D08"]
[WhiteElo "1561"]
[BlackElo "1836"]
[Annotator "NA RC"]
[PlyCount "66"]
[EventDate "2020.10.20"]
[EventType "swiss"]
[EventRounds "7"]
[EventCountry "GER"]
[SourceTitle "playchess.com"]
[Source "ChessBase"]
[SourceQuality "1"]
[TimeControl "40/5400+30:1800+30"]

{[%evp 9,61,55,68,0,60,0,17,-36,-38,-18,-28,-185,-100,-179,-167,-178,-105,-94,-63,-85,-75,-66,-23,-31,37,-28,32767,0,-1,32767,6,0,32767,32767,32767,0,0,0,25,-2271,46,-1654,-29991,-5231,-531,-509,-532,-509,-533,32767,32767,32767,0,-1068]} 1. d4 {[%emt 0:00:00]} d5 {[%emt 0:00:00]} 2. c4 {[%emt 0:00:00]} e5 {[%emt 0:00:00]} 3. dxe5 {[%emt 0:01:11]} d4 {[%emt 0:00:02]} 4. Nf3 {[%emt 0:02:07]} Nc6 {[%emt 0:00:08]} 5. a3 {[%emt 0:04:23]} Nge7 {[%emt 0:00:46]} 6. e3 {[%emt 0:02:13]} (6. b4 $14) 6... Nf5 {[%emt 0:01:16] D07: Queen's Gambit: Chigorin Defence.} 7. exd4 {[%emt 0:03:11]} Nfxd4 {[%emt 0:01:11]} 8. Nxd4 {[%emt 0:01:53]} Qxd4 {[%emt 0:01:12]} 9. Nc3 {[%emt 0:12:33]} Be6 {[%emt 0:20:41] [#]} 10. Nb5 $2 $146 {[%emt 0:26:03]} ({Predecessor:} 10. Be3 $11 {and White is okay.} Qxe5 11. Be2 Rd8 12. Qa4 a6 13. O-O Bd6 14. g3 O-O 15. Rad1 Bc5 16. Bf4 {1-0 (42) Bocharov,D (2611)-Morozevich,A (2683) Sochi 2016}) 10... Qxd1+ {[%emt 0:02:47]} ({Much less strong is} 10... Qxe5+ 11. Qe2 $15) 11. Kxd1 {[%emt 0:03:03]} O-O-O+ {[%emt 0:00:40]} 12. Kc2 {[%emt 0:04:17]} Bf5+ {[%emt 0:14:04]} ({Don't do} 12... Nxe5 13. Bf4 $11) (12... a6 $19 13. Nc3 Nd4+ 14. Kb1 Nb3) 13. Kb3 {[%emt 0:01:29]} a6 {[%emt 0:00:49]} ({But not} 13... Nxe5 14. Bf4 $11) 14. Nc3 {[%emt 0:00:18]} Nd4+ {[%emt 0:02:24]} 15. Ka2 {[%emt 0:00:39]} Nc2 {[%emt 0:30:17]} 16. Rb1 {[%emt 0:00:22]} Be7 {[%emt 0:01:23]} (16... Bc5 $11) 17. Bf4 {[%emt 0:05:25]} (17. Nd5 $14 Bf8 18. Bg5) 17... c6 {[%emt 0:05:14]} 18. Rd1 {[%emt 0:05:18]} Rxd1 {[%emt 0:01:24]} 19. Nxd1 {[%emt 0:00:08]} Rd8 {[%emt 0:01:01]} 20. Ne3 {[%emt 0:03:22]} Nxe3 {[%emt 0:00:51]} 21. Bxe3 {[%emt 0:00:26]} Rd1 {[%emt 0:00:28]} 22. g3 $1 {[%emt 0:00:59]} Bb1+ {[%emt 0:06:44]} 23. Kb3 {[%emt 0:00:16]} Kb8 {[%emt 0:01:19]} 24. Bg2 $2 {[%emt 0:00:32]} (24. f4 $11) 24... Rd3+ {[%emt 0:00:25]} 25. Ka4 {[%emt 0:00:17]} Bc2+ {[%emt 0:00:41]} 26. Ka5 {[%emt 0:00:54] [#]} Rb3 {[%emt 0:00:47]} (26... Rxe3 $142 $1 {[%mdl 512]} 27. Rc1 (27. fxe3 Ka7) 27... Rxe5+ 28. Bd5 cxd5 29. Rxc2 dxc4+ {[%mdl 64] Discovered Attack} 30. Ka4 b6 31. Rxc4 b5+ {[%mdl 64] Double Attack} 32. Kb3 bxc4+ 33. Kc3 Re2) 27. Bb6 {[%emt 0:02:13]} Rxb2 {[%emt 0:00:44]} 28. Ra1 {[%emt 0:03:28]} Rb3 {[%emt 0:01:17]} 29. Ra2 {[%emt 0:07:32]} Bb1 {[%emt 0:00:29]} 30. Ra1 {[%emt 0:04:40]} Bc2 $11 {[%emt 0:01:30]} (30... Bd3 {mates} 31. Be4 Bxe4 32. e6 Bd3 33. exf7 Bxc4 34. f8=Q+ Bxf8 35. Ka4 Rxb6 36. Rb1 Rxb1 37. h3 Rb5 38. h4 Bb3#) 31. Ra2 $1 {[%emt 0:00:26]} Bd3 {[%emt 0:01:11]} 32. c5 {[%emt 0:09:10]} Rb5+ {[%emt 0:00:46]} 33. Ka4 {[%emt 0:00:07]} Bc4 {[%emt 0:00:21]} 0-1

[Event "GER-ch Youth U16W 2020"]
[Site "Willingen"]
[Date "2020.10.20"]
[Round "1.6"]
[White "Heutling, Elina"]
[Black "Jacoby, Angelina"]
[Result "1-0"]
[ECO "B01"]
[WhiteElo "1873"]
[BlackElo "1630"]
[Annotator "NA RC"]
[PlyCount "57"]
[EventDate "2020.10.20"]
[EventType "swiss"]
[EventRounds "7"]
[EventCountry "GER"]
[SourceTitle "playchess.com"]
[Source "ChessBase"]
[SourceQuality "1"]
[TimeControl "40/5400+30:1800+30"]

{[%evp 8,54,57,32767,32767,32767,32767,32767,32767,45,54,52,57,18,34,36,60,56,60,58,92,80,118,117,156,22,144,1,0,0,91,32767,32767,-147,-120,-111,-29,32767,645,731,695,32767,32767,32767,32767,32767,1351,1613,1117]} 1. e4 {[%emt 0:00:00]} d5 {[%emt 0:00:00]} 2. exd5 {[%emt 0:00:00]} Qxd5 {[%emt 0:00:00]} 3. Nc3 {[%emt 0:00:00]} Qd8 {[%emt 0:00:00]} 4. d4 {[%emt 0:00:13]} Nf6 {[%emt 0:00:25]} 5. Nf3 {[%emt 0:00:57]} Bg4 {[%emt 0:00:36]} 6. h3 {[%emt 0:00:37]} Bxf3 {[%emt 0:00:37] B01: Scandinavian Defence.} 7. Qxf3 {[%emt 0:00:31]} c6 {[%emt 0:00:14]} 8. Bf4 {[%emt 0:04:08]} e6 {[%emt 0:08:27]} 9. O-O-O {[%emt 0:01:06]} Bb4 {[%emt 0:03:38]} 10. Bc4 {[%emt 0:05:53] [#]} O-O $146 {[%emt 0:12:04]} ({Predecessor:} 10... Nbd7 11. Rhe1 Nb6 12. Bb3 Bxc3 13. Qxc3 O-O 14. Qd3 Nbd5 15. Bd2 a5 16. c3 Ne7 {1-0 (29) Zavgorodniaya,A (1986)-Tskhadadze,A (1885) St Petersburg 2015}) 11. g4 {[%emt 0:07:42]} Nd5 {[%emt 0:02:34]} 12. Nxd5 {[%emt 0:02:34]} cxd5 {[%emt 0:02:12]} 13. Bd3 {[%emt 0:07:28]} Qd7 {[%emt 0:10:20]} 14. g5 {[%emt 0:07:26]} Rc8 {[%emt 0:03:03]} 15. h4 {[%emt 0:06:56]} Nc6 {[%emt 0:06:10]} 16. Be3 {[%emt 0:07:54]} (16. h5 $16) 16... Be7 {[%emt 0:08:45]} (16... Bd6 $14) 17. Rdg1 {[%emt 0:19:22]} ({White should play} 17. c3 $16) 17... Nb4 {[%emt 0:03:47]} 18. Bd2 $1 {[%emt 0:10:10]} Nxa2+ {[%emt 0:03:15]} (18... Nxd3+ $11 19. Qxd3 Qa4) 19. Kd1 {[%emt 0:04:25]} Nb4 {[%emt 0:08:42] [#]} 20. h5 $2 {[%emt 0:04:51]} (20. Bxh7+ $1 $18 Kxh7 {[#]} 21. g6+ $1 {[%mdl 512]} fxg6 22. h5 g5 23. h6 Rf8 24. hxg7+ Kg8 25. gxf8=Q+ Bxf8 26. Rxg5+ Bg7 27. Qh5) 20... Nxd3 {[%emt 0:01:45]} 21. Qxd3 {[%emt 0:00:04]} Rc7 {[%emt 0:06:46]} ({Black should try} 21... Qa4 $17 22. f4 Rc6) 22. g6 {[%emt 0:04:34]} fxg6 $2 {[%emt 0:00:53]} (22... Bf6 $11) 23. hxg6 {[%emt 0:00:21]} h6 {[%emt 0:00:27]} 24. Bxh6 {[%emt 0:02:40]} gxh6 {[%emt 0:04:31]} 25. Rxh6 {[%emt 0:00:09]} Bf6 {[%emt 0:00:34]} 26. g7 {[%emt 0:00:42]} Bxg7 {[%emt 0:00:39]} 27. Qh7+ {[%emt 0:01:14]} Kf8 $18 {[%emt 0:00:48]} 28. Rf6+ {[%emt 0:00:16]} Qf7 {[%emt 0:04:42]} 29. Rxg7 {[%emt 0:00:35]} 1-0

[Event "GER-ch Youth U16W 2020"]
[Site "Willingen"]
[Date "2020.10.20"]
[Round "1.7"]
[White "Schwegler, Jelena"]
[Black "Doll, Rebecca"]
[Result "0-1"]
[ECO "C44"]
[WhiteElo "1539"]
[BlackElo "1808"]
[Annotator "NA RC"]
[PlyCount "106"]
[EventDate "2020.10.20"]
[EventType "swiss"]
[EventRounds "7"]
[EventCountry "GER"]
[SourceTitle "playchess.com"]
[Source "ChessBase"]
[SourceQuality "1"]
[TimeControl "40/5400+30:1800+30"]

{[%evp 9,99,0,-8,-34,32767,32767,32767,32767,32767,-4,99,98,175,165,188,46,60,-19,7,0,32767,0,32767,39,70,19,87,50,79,76,97,81,97,111,102,32767,32767,32767,32767,21,29,32767,32767,32767,77,33,63,32767,32767,32767,32767,32767,32767,32767,32767,32767,139,32767,32767,32767,32767,32767,32767,32767,32767,32767,32767,32767,32767,-68,-70,-95,-48,-55,-37,-47,-51,32767,32767,-177,32767,32767,32767,-173,-201,-189,-248,-626,-1585,-647,-1558,-5077]} 1. e4 {[%emt 0:00:00]} e5 {[%emt 0:00:00]} 2. Nf3 {[%emt 0:00:00]} Nc6 {[%emt 0:00:00]} 3. d4 {[%emt 0:00:00]} exd4 {[%emt 0:00:00]} 4. Nxd4 {[%emt 0:00:00]} Nf6 {[%emt 0:00:00]} 5. Nxc6 {[%emt 0:00:00]} bxc6 {[%emt 0:00:04]} 6. Qe2 {[%emt 0:00:00] C45: Scotch Game.} Rb8 {[%emt 0:01:35]} 7. e5 {[%emt 0:00:12]} Nd5 {[%emt 0:01:36]} 8. c4 {[%emt 0:02:07]} Bb4+ {[%emt 0:03:17]} 9. Bd2 {[%emt 0:06:54] [#]} Ba6 $146 {[%emt 0:08:11]} ({Predecessor:} 9... Nf4 $11 {keeps the balance.} 10. Qe3 Ne6 11. Bxb4 Rxb4 12. Qd2 c5 13. Bd3 O-O 14. Nc3 Bb7 15. O-O f6 {½-½ (30) Oglaza,O (2240)-Erenberg,A (2415) Batumi 2018}) 10. Qg4 {[%emt 0:08:54]} Bxd2+ {[%emt 0:09:18]} (10... Ne7 $16) 11. Nxd2 {[%emt 0:00:26]} Ne7 {[%emt 0:09:48]} 12. b3 {[%emt 0:05:57]} ({White must play} 12. Qxg7 $18 Rg8 13. Qxh7 Rxb2 14. Qd3 (14. Ne4 Qb8 $11)) 12... Ng6 {[%emt 0:04:18]} 13. Be2 {[%emt 0:09:50]} (13. Bd3 $1 $14) 13... Qe7 {[%emt 0:04:16]} 14. O-O {[%emt 0:23:43]} O-O {[%emt 0:12:29]} 15. f4 {[%emt 0:02:31]} Bc8 {[%emt 0:10:19]} 16. Qf3 {[%emt 0:15:53]} Bb7 {[%emt 0:06:25]} 17. Bd3 {[%emt 0:04:20]} Rfe8 {[%emt 0:06:21]} (17... f5 $11) 18. Ne4 {[%emt 0:05:15]} c5 {[%emt 0:05:00]} 19. Qg3 {[%emt 0:01:10]} Bxe4 {[%emt 0:02:23]} 20. Bxe4 {[%emt 0:00:09]} d6 {[%emt 0:01:46]} 21. Bc6 {[%emt 0:00:31]} Red8 {[%emt 0:00:22]} 22. exd6 {[%emt 0:00:28]} Qxd6 {[%emt 0:04:08]} 23. Qf3 {[%emt 0:06:26]} Ne7 {[%emt 0:03:49]} 24. Be4 {[%emt 0:00:57]} f5 {[%emt 0:00:29]} 25. Bc2 {[%emt 0:00:30]} Qd4+ {[%emt 0:00:26]} 26. Kh1 {[%emt 0:00:19]} Rd6 {[%emt 0:01:43]} 27. Rfe1 {[%emt 0:01:53]} Rbd8 {[%emt 0:03:05]} 28. h3 {[%emt 0:01:09]} Qb2 {[%emt 0:01:10]} 29. Rad1 {[%emt 0:02:24]} Qf6 {[%emt 0:00:25]} 30. Rxd6 {[%emt 0:00:16]} cxd6 {[%emt 0:00:05]} 31. Qb7 {[%emt 0:01:15]} Ng6 {[%emt 0:00:54]} 32. Qd5+ {[%emt 0:00:40]} Qf7 {[%emt 0:00:47]} 33. Qxf5 {[%emt 0:01:17]} Qxf5 {[%emt 0:00:09]} 34. Bxf5 {[%emt 0:00:02]} Nxf4 {[%emt 0:00:07]} 35. Kh2 {[%emt 0:00:27]} g6 {[%emt 0:01:11]} 36. Be4 {[%emt 0:01:02]} Kg7 {[%emt 0:00:43]} 37. Bc6 {[%emt 0:00:24]} Rf8 {[%emt 0:01:06]} 38. Re7+ {[%emt 0:00:13]} Rf7 {[%emt 0:00:03]} 39. Rxf7+ {[%emt 0:00:53]} (39. Re3 $11) 39... Kxf7 {[%emt 0:00:02]} 40. Kg3 {[%emt 0:00:49]} Nd3 {[%emt 0:00:08]} 41. a3 {[%emt 0:30:43]} Kf6 {[%emt 0:30:14]} 42. Be4 {[%emt 0:00:00]} Nc1 $1 {[%emt 0:00:00]} 43. b4 {[%emt 0:00:00]} Ke5 {[%emt 0:00:00]} 44. Bd5 {[%emt 0:00:00]} (44. bxc5 $17 {was the only defense.} dxc5 45. Bd5) 44... h6 {[%emt 0:00:00]} 45. Bf7 {[%emt 0:00:00]} Kf5 {[%emt 0:00:00]} 46. Kf3 $2 {[%emt 0:00:00]} (46. h4 $11 {and White stays safe.}) 46... cxb4 {[%emt 0:00:00]} 47. axb4 {[%emt 0:00:00]} Nd3 {[%emt 0:00:00]} 48. b5 $2 {[%emt 0:00:00]} (48. Ke3 Nxb4 49. Kd4) 48... Ne5+ {[%emt 0:00:00] Double Attack} 49. Ke3 {[%emt 0:00:00]} Nxf7 {[%emt 0:00:00]} 50. Kd4 $19 {[%emt 0:00:00]} Ke6 {[%emt 0:00:00]} 51. c5 {[%emt 0:00:00]} dxc5+ {[%emt 0:00:00]} 52. Kxc5 {[%emt 0:00:00]} Ne5 {[%emt 0:00:00]} 53. b6 {[%emt 0:00:00]} Nd7+ 0-1

[Event "GER-ch Youth U16W 2020"]
[Site "Willingen"]
[Date "2020.10.20"]
[Round "1.9"]
[White "Klahold, Rona"]
[Black "Brunner, Sophia"]
[Result "0-1"]
[ECO "A45"]
[WhiteElo "1551"]
[BlackElo "1850"]
[Annotator "NA RC"]
[PlyCount "128"]
[EventDate "2020.10.20"]
[EventType "swiss"]
[EventRounds "7"]
[EventCountry "GER"]
[SourceTitle "playchess.com"]
[Source "ChessBase"]
[SourceQuality "1"]
[TimeControl "40/5400+30:1800+30"]

{[%evp 12,120,-49,-50,32767,-56,-56,-46,-38,-36,-32,-40,-33,-40,-23,-33,-24,-29,32767,-38,-49,-69,-13,32767,32767,-14,4,0,-14,-2,18,12,10,7,32767,32767,32767,-1,32767,-23,-11,32767,32767,32767,32767,32767,-228,-209,-241,-253,32767,32767,32767,32767,32767,32767,32767,32767,32767,32767,32767,-231,-170,32767,32767,32767,32767,-338,32767,-379,-366,-421,32767,32767,32767,32767,-655,-405,-793,-549,-544,-639,-31,-555,-492,-503,-950,32767,32767,32767,32767,32767,32767,32767,32767,32767,32767,32767,32767,32767,32767,-12574,-29970,-29977,-29979,32767,-29973,-29976,-29981,-29981,-29982]} 1. d4 {[%emt 0:00:00]} Nf6 {[%emt 0:00:00]} 2. Bf4 {[%emt 0:00:00]} g6 {[%emt 0:00:00]} 3. Nc3 {[%emt 0:00:20]} d5 {[%emt 0:00:00]} 4. Nf3 {[%emt 0:01:11]} Bg7 {[%emt 0:00:15]} 5. e3 {[%emt 0:00:34]} O-O {[%emt 0:01:16]} 6. Ne2 {[%emt 0:03:41] D00: 1 d4 d5: Unusual lines.} c5 {[%emt 0:03:02]} 7. Ng3 {[%emt 0:03:18]} Qb6 {[%emt 0:11:38]} 8. Qc1 {[%emt 0:05:37]} Nc6 {[%emt 0:03:51]} 9. c3 {[%emt 0:03:00] [#]} Bg4 $146 {[%emt 0:18:09]} ({Predecessor:} 9... Nd7 10. Bd3 f6 11. e4 dxe4 12. Nxe4 cxd4 13. cxd4 Nxd4 14. Qc4+ Ne6 15. Rc1 Nb8 {0-1 (38) Maestre,A-Estremera Panos,S Benidorm 1986}) 10. Ne5 {[%emt 0:06:30]} Rac8 {[%emt 0:07:03]} 11. Nxg4 {[%emt 0:03:01]} Nxg4 {[%emt 0:00:13]} 12. Be2 {[%emt 0:00:37]} Nf6 {[%emt 0:06:48]} 13. Qd2 {[%emt 0:10:27]} Rfe8 {[%emt 0:01:57]} 14. h4 {[%emt 0:09:27]} h5 {[%emt 0:11:32]} 15. Rb1 {[%emt 0:10:53]} e6 {[%emt 0:17:24]} 16. Qd3 {[%emt 0:06:11]} (16. O-O $11) 16... e5 {[%emt 0:08:08]} ({Better is} 16... cxd4 $17 17. exd4 e5 18. dxe5 Nxe5) 17. dxe5 {[%emt 0:01:34]} Nxe5 {[%emt 0:00:01]} 18. Qb5 {[%emt 0:01:35]} Qxb5 {[%emt 0:04:50]} 19. Bxb5 {[%emt 0:00:02]} Re7 {[%emt 0:00:01]} 20. O-O {[%emt 0:02:53]} a6 {[%emt 0:01:51]} 21. Ba4 {[%emt 0:02:42]} Rd8 {[%emt 0:00:37]} 22. Ne2 {[%emt 0:01:09]} b5 {[%emt 0:01:19]} 23. Bc2 {[%emt 0:00:18]} Nc6 {[%emt 0:00:14]} 24. Rbd1 {[%emt 0:00:50]} Red7 {[%emt 0:00:31]} 25. b3 {[%emt 0:04:21]} Ne4 {[%emt 0:01:04]} 26. f3 {[%emt 0:11:04]} Nxc3 {[%emt 0:00:13]} 27. Nxc3 {[%emt 0:00:09]} Bxc3 {[%emt 0:00:05]} 28. Rd3 {[%emt 0:00:22]} Be5 {[%emt 0:00:52]} 29. Bxe5 {[%emt 0:01:51]} Nxe5 {[%emt 0:00:01]} 30. Rd2 {[%emt 0:00:09]} d4 {[%emt 0:01:20]} 31. exd4 {[%emt 0:02:28]} Rxd4 {[%emt 0:00:03]} 32. Rxd4 {[%emt 0:00:31]} Rxd4 {[%emt 0:00:08]} 33. Re1 {[%emt 0:03:19]} f6 {[%emt 0:00:10]} 34. Rd1 {[%emt 0:02:19]} Rxd1+ {[%emt 0:00:10]} 35. Bxd1 {[%emt 0:00:01]} Kf7 {[%emt 0:01:14]} 36. Bc2 {[%emt 0:02:25]} (36. Kf2 $17) 36... Nc6 {[%emt 0:00:24]} 37. Kf2 {[%emt 0:01:00]} Nb4 {[%emt 0:00:44]} 38. Bb1 {[%emt 0:00:07]} f5 {[%emt 0:00:20]} 39. Ke3 {[%emt 0:01:46]} Nd5+ {[%emt 0:00:17]} 40. Kd2 {[%emt 0:00:36]} Ke6 {[%emt 0:01:22]} 41. g3 {[%emt 0:31:19]} c4 {[%emt 0:16:39]} 42. bxc4 {[%emt 0:00:00]} bxc4 {[%emt 0:00:03]} 43. a3 {[%emt 0:00:00]} Ke5 {[%emt 0:01:13]} 44. Bc2 {[%emt 0:00:00]} Kd4 {[%emt 0:01:43]} 45. Ba4 {[%emt 0:00:00]} Nc7 {[%emt 0:11:14]} 46. Bd7 {[%emt 0:00:00]} Nb5 $2 {[%emt 0:01:34]} (46... c3+ $19 47. Kc2 Nb5) 47. a4 $2 {[%emt 0:00:00]} (47. Be8 $17) 47... Nc7 {[%emt 0:00:49]} 48. Bc8 {[%emt 0:00:00]} a5 {[%emt 0:00:28]} 49. Bd7 {[%emt 0:00:00]} c3+ {[%emt 0:00:37]} 50. Kc2 {[%emt 0:00:00]} Nd5 {[%emt 0:00:03]} 51. Be8 {[%emt 0:00:00]} Nb4+ {[%emt 0:00:34]} 52. Kc1 {[%emt 0:00:00]} Kd3 {[%emt 0:00:54]} 53. Bb5+ {[%emt 0:00:00]} Ke3 {[%emt 0:00:11]} 54. f4 {[%emt 0:01:34]} Kf3 {[%emt 0:00:21]} 55. Be8 {[%emt 0:00:09]} Kxg3 {[%emt 0:00:24]} 56. Bxg6 {[%emt 0:00:06]} Kxf4 {[%emt 0:01:25]} 57. Bxh5 {[%emt 0:00:06]} Kg3 {[%emt 0:00:14]} 58. Bg6 {[%emt 0:00:12]} f4 {[%emt 0:00:41]} 59. h5 {[%emt 0:00:29]} f3 {[%emt 0:00:15]} 60. Bf7 {[%emt 0:00:18]} Nd3+ {[%emt 0:00:31]} 61. Kc2 {[%emt 0:00:15]} f2 {[%emt 0:00:16]} 62. h6 {[%emt 0:00:33]} f1=Q {[%emt 0:00:08]} 63. h7 {[%emt 0:00:02]} Nb4+ {[%emt 0:00:18]} 64. Kxc3 {[%emt 0:00:26]} Qf6+ 0-1

[Event "GER-ch Youth U16W 2020"]
[Site "Willingen"]
[Date "2020.10.20"]
[Round "1.10"]
[White "Reuter, Elisa"]
[Black "Dohon, Maria-Johanna"]
[Result "1-0"]
[ECO "B14"]
[WhiteElo "1860"]
[BlackElo "1536"]
[Annotator "NA RC"]
[PlyCount "69"]
[EventDate "2020.10.20"]
[EventType "swiss"]
[EventRounds "7"]
[EventCountry "GER"]
[SourceTitle "playchess.com"]
[Source "ChessBase"]
[SourceQuality "1"]
[TimeControl "40/5400+30:1800+30"]

{[%evp 14,58,-14,-6,0,-44,-63,-66,-31,-89,-77,-79,-50,-56,-48,-93,-59,-124,-36,-56,-42,-107,-15,32767,-12,-21,32767,32767,-5,32767,0,-5,3,8,12,32767,32767,32767,32767,32767,25,0,32767,-17,32767,32767,14]} 1. e4 {[%emt 0:00:00]} c6 {[%emt 0:00:00]} 2. d4 {[%emt 0:00:00]} d5 {[%emt 0:00:00]} 3. exd5 {[%emt 0:00:00]} cxd5 {[%emt 0:00:00]} 4. c4 {[%emt 0:00:00]} Nf6 {[%emt 0:00:15]} 5. Nc3 {[%emt 0:00:07]} e6 {[%emt 0:00:22]} 6. Nf3 {[%emt 0:00:57]} Bb4 {[%emt 0:00:14]} 7. a3 {[%emt 0:12:13]} Bxc3+ $1 {[%emt 0:04:10]} 8. bxc3 {[%emt 0:00:06]} O-O {[%emt 0:02:45]} 9. c5 {[%emt 0:07:24] B14: Caro-Kann: Panov-Botvinnik Attack with 5...e6 and 5...g6.} b6 {[%emt 0:08:22]} 10. cxb6 {[%emt 0:05:25]} Qxb6 {[%emt 0:02:23]} 11. Bd3 {[%emt 0:01:40]} Ba6 {[%emt 0:08:06]} 12. O-O {[%emt 0:02:16]} Bxd3 {[%emt 0:04:58]} 13. Qxd3 {[%emt 0:00:09]} Qa6 {[%emt 0:10:11] [#]} 14. Qc2 $146 {[%emt 0:10:45]} (14. Qxa6 $15 Nxa6 15. Bf4) ({Predecessor:} 14. Rd1 Qxd3 15. Rxd3 Nbd7 16. a4 a5 17. Nd2 Rfc8 18. f3 Nb6 19. Kf2 Nc4 20. Nb3 {½-½ (39) Lach,A (2209)-Dzikowski,M (2158) Katowice 2018}) 14... Ne4 {[%emt 0:07:47]} 15. Ne5 {[%emt 0:05:06]} Nc6 {[%emt 0:12:00]} (15... Rc8 $17 16. Bb2 Nc6 17. Nxc6 Rxc6) 16. f3 {[%emt 0:07:25]} Nd6 {[%emt 0:08:34]} 17. Re1 {[%emt 0:07:11]} ({White should try} 17. Nd7 $15) 17... Ne7 {[%emt 0:05:41]} (17... Nxe5 $17 18. Rxe5 Rfc8) 18. Bf4 {[%emt 0:07:50]} Rac8 {[%emt 0:04:13]} 19. Nd7 {[%emt 0:03:21]} Rfd8 {[%emt 0:01:57]} 20. Nc5 {[%emt 0:01:01]} Qc6 {[%emt 0:01:52]} 21. Bxd6 {[%emt 0:00:59]} Rxd6 {[%emt 0:00:55]} 22. f4 {[%emt 0:04:34]} Ng6 {[%emt 0:02:36]} 23. Qf2 {[%emt 0:03:20]} h6 {[%emt 0:01:20]} 24. Re3 {[%emt 0:04:11]} Rb8 {[%emt 0:02:07]} 25. Rae1 {[%emt 0:01:21]} Qb6 {[%emt 0:01:42]} 26. g3 {[%emt 0:06:14]} Nf8 {[%emt 0:01:41]} 27. Kg2 {[%emt 0:03:49]} Qb2 {[%emt 0:01:56]} 28. a4 {[%emt 0:01:29]} Qxf2+ {[%emt 0:01:15]} 29. Kxf2 {[%emt 0:00:04]} Rb2+ $11 {[%emt 0:01:19]} 30. R3e2 {[%emt 0:00:19]} Rxe2+ {[%emt 0:00:50]} 31. Kxe2 {[%emt 0:01:49]} Ng6 {[%emt 0:01:56]} 32. Rb1 {[%emt 0:00:56]} Ne7 {[%emt 0:02:10]} 33. Rb7 {[%emt 0:00:34]} Nc6 {[%emt 0:00:22]} 34. Rc7 {[%emt 0:00:15]} a5 {[%emt 0:00:56]} 35. Nb7 {[%emt 0:00:13]} 1-0